bitfinex/quotes_SOLUSD_20250306
["timestamp","ask_amount","ask_price","bid_price","bid_amount"]
[1741254487134,2.0,149.56,149.52,24.10076819]
[1741254487301,2.0,149.56,149.53,0.14216157]
[1741254487618,80.8,149.56,149.53,24.24292976]
[1741254488303,2.0,149.54,149.49,30.78976819]
[1741254488504,82.8,149.53,149.48,24.10076819]
[1741254488727,2.0,149.51,149.47,30.79106819]
[1741254488904,80.8,149.5,149.48,0.14216157]
[1741254489594,80.8,149.5,149.49,312.14216157]
[1741254489823,80.8,149.5,149.49,336.10076819]
[1741254490017,80.8,149.5,149.49,336.24292976]
[1741254490518,80.8,149.5,149.49,312.14216157]
[1741254491709,80.8,149.5,149.49,318.83156157]
[1741254491923,80.8,149.5,149.49,312.14216157]
[1741254492099,2.0,149.51,149.49,312.0]
[1741254492300,2.0,149.51,149.5,0.14216157]
[1741254492817,2.0,149.5,149.49,0.033]
[1741254493718,17.14222314,149.5,149.49,0.033]
[1741254494025,19.04092799,149.5,149.49,0.033]
[1741254494319,42.57586282,149.5,149.49,0.033]
[1741254494520,42.57586282,149.5,149.4,30.79386819]
[1741254494521,2.0,149.45,149.41,24.10076819]
[1741254494724,2.0,149.46,149.41,24.10076819]
[1741254494929,2.0,149.46,149.42,0.14216157]
[1741254495305,1.75645693,149.48,149.42,6.6925]
[1741254495306,2.0,149.43,149.42,6.6925]
[1741254495628,2.0,149.43,149.4,24.10076819]
[1741254495811,2.0,149.43,149.42,312.0]
[1741254496433,2.0,149.44,149.42,312.0]
[1741254496733,2.0,149.43,149.42,0.14216157]
[1741254496919,2.0,149.43,149.42,6.83466157]
[1741254497418,2.0,149.42,149.39,24.10076819]
[1741254497621,2.0,149.42,149.38,24.10076819]
[1741254497840,1.75680577,149.45,149.39,0.14216157]
[1741254497841,2.0,149.41,149.39,0.14216157]
[1741254498326,2.0,149.4,149.37,24.10076819]
[1741254498524,1.75680577,149.45,149.36,6.6952]
[1741254498525,2.0,149.38,149.36,6.6952]
[1741254498732,2.0,149.38,149.37,0.14216157]
[1741254498908,2.0,149.39,149.38,6.6943]
[1741254499113,2.0,149.39,149.38,6.83646157]
[1741254499428,2.0,149.39,149.37,6.6946]
[1741254499640,2.0,149.36,149.34,0.033]
[1741254499841,2.0,149.35,149.34,0.033]
[1741254500008,2.0,149.36,149.35,0.14216157]
[1741254500217,0.93925754,149.35,149.34,0.033]
[1741254502533,0.93925754,149.35,149.34,312.17516157]
[1741254502731,0.43925754,149.35,149.34,312.17516157]
[1741254503132,0.43925754,149.35,149.34,312.033]
[1741254503432,19.0889064,149.35,149.34,0.033]
[1741254503833,20.84719057,149.35,149.34,0.033]
[1741254504248,0.43925754,149.35,149.34,0.033]
[1741254504716,5.33392465,149.35,149.34,0.033]
[1741254505136,5.33392465,149.35,149.34,0.17516157]
[1741254505718,5.33392465,149.35,149.34,0.033]
[1741254505921,4.64392465,149.35,149.34,0.033]
[1741254506320,4.64392465,149.35,149.34,312.17516157]
[1741254506837,80.8,149.37,149.35,0.14216157]
[1741254507143,80.8,149.37,149.36,6.6952]
[1741254507435,7.77293243,149.4,149.36,6.83736157]
[1741254507639,80.8,149.39,149.36,6.83736157]
[1741254507936,20.40716061,149.38,149.34,0.033]
[1741254508232,1.75751175,149.38,149.35,0.14216157]
[1741254508631,80.8,149.37,149.35,24.24292976]
[1741254508840,45.1158,149.37,149.36,24.24292976]
[1741254509026,6.5443,149.37,149.36,24.24292976]
[1741254509221,80.8,149.43,149.39,0.14216157]
[1741254509421,1.75704856,149.44,149.39,0.14216157]
[1741254509422,80.8,149.42,149.39,24.24292976]
[1741254509719,80.8,149.42,149.41,312.14216157]
[1741254511139,80.8,149.42,149.41,342.93582976]
[1741254511638,1.75686123,149.47,149.41,342.93582976]
[1741254511815,80.8,149.46,149.44,0.14216157]
[1741254512019,73.34193651,149.45,149.44,0.14216157]
[1741254512433,73.34193651,149.45,149.42,0.14216157]
[1741254512434,91.99158537,149.45,149.42,0.14216157]
[1741254512639,75.09880658,149.44,149.42,0.14216157]
[1741254513338,75.09880658,149.44,149.39,0.14216157]
[1741254513543,91.99158537,149.43,149.39,0.14216157]
[1741254513718,1.75710734,149.42,149.39,0.14216157]
[1741254514343,91.99158537,149.43,149.39,0.14216157]
[1741254514728,1.75695591,149.42,149.4,312.0]
[1741254514930,91.99158537,149.43,149.4,312.0]
[1741254515245,18.64964886,149.41,149.36,6.5]
[1741254515445,18.64964886,149.41,149.34,0.033]
[1741254515446,75.09935717,149.4,149.37,0.14216157]
[1741254515626,18.64964886,149.39,149.34,0.033]
[1741254515821,75.09935717,149.4,149.34,0.033]
[1741254515822,1.75762206,149.38,149.34,0.033]
[1741254516039,73.34193651,149.37,149.34,0.033]
[1741254516245,1.75777843,149.36,149.34,0.033]
[1741254516447,1.75777843,149.36,149.34,0.17516157]
[1741254516834,1.75777843,149.36,149.34,0.033]
[1741254517138,73.34193651,149.35,149.34,0.033]
[1741254517329,1.75777843,149.36,149.34,0.033]
[1741254517530,18.64964886,149.35,149.34,0.033]
[1741254518542,1.75777843,149.36,149.34,0.033]
[1741254518759,8.4522704,149.38,149.34,0.033]
[1741254519156,18.64964886,149.37,149.34,0.033]
[1741254519340,18.64964886,149.35,149.34,0.033]
[1741254519937,1.7579544,149.38,149.34,0.033]
[1741254519938,45.77083357,149.37,149.34,0.033]
[1741254520135,18.64964886,149.35,149.34,0.033]
[1741254522048,18.933972,149.35,149.34,0.033]
[1741254522238,20.69207992,149.35,149.34,0.033]
[1741254522952,27.38767992,149.35,149.34,0.033]
[1741254523156,20.69207992,149.35,149.34,0.033]
[1741254523933,27.38767992,149.35,149.34,0.033]
[1741254524142,20.69207992,149.35,149.34,0.033]
[1741254525942,27.38767992,149.35,149.34,0.033]
[1741254528255,0.28432314,149.31,149.25,1.6548173]
[1741254528554,1.75871401,149.31,149.25,25.75558549]
[1741254528766,1.75871401,149.31,149.27,0.14216157]
[1741254528767,20.40836287,149.31,149.27,0.14216157]
[1741254529845,1.75871401,149.31,149.27,30.94202976]
[1741254530054,1.7584499,149.32,149.29,0.14216157]
[1741254530265,18.64964886,149.34,149.29,0.14216157]
[1741254530557,18.64964886,149.32,149.29,0.14216157]
[1741254530759,10.76712314,149.36,149.29,0.14216157]
[1741254530760,18.64964886,149.34,149.29,0.14216157]
[1741254530939,18.64964886,149.32,149.29,0.14216157]
[1741254531141,18.64964886,149.32,149.29,24.10076819]
[1741254531339,18.64964886,149.32,149.3,6.84006157]
[1741254531547,80.8,149.31,149.3,6.84006157]
[1741254532960,80.8,149.31,149.3,318.84006157]
[1741254533346,18.64964886,149.34,149.3,318.84006157]
[1741254533542,18.64964886,149.32,149.3,312.14216157]
[1741254533741,18.64964886,149.32,149.3,318.83996157]
[1741254533963,18.64964886,149.32,149.3,312.14216157]
[1741254534666,18.64964886,149.32,149.3,312.0]
[1741254535957,4.88488258,149.31,149.3,312.0]
[1741254536160,4.88488258,149.31,149.3,318.84006157]
[1741254537060,4.88488258,149.31,149.3,21.94574845]
[1741254537864,4.88488258,149.31,149.3,6.84006157]
[1741254538246,4.88488258,149.31,149.3,21.94574845]
[1741254539963,4.88488258,149.31,149.3,333.94574845]
[1741254542371,8.258e-05,149.31,149.3,333.94574845]
[1741254542949,80.8,149.34,149.31,0.14216157]
[1741254543152,80.8,149.34,149.33,15.24784845]
[1741254543972,0.03,149.35,149.34,6.83826157]
[1741254544171,0.03,149.35,149.34,21.94394845]
[1741254544380,0.03,149.35,149.34,6.83826157]
[1741254544563,0.03,149.35,149.34,21.94394845]
[1741254545651,80.8,149.39,149.34,21.94394845]
[1741254545880,36.02510283,149.48,149.34,21.94394845]
[1741254545881,80.8,149.42,149.38,15.24784845]
[1741254546181,80.8,149.44,149.42,0.14216157]
[1741254546484,80.8,149.43,149.42,0.14216157]
[1741254548066,80.8,149.43,149.4,6.83556157]
[1741254548263,80.8,149.43,126.0,53.035]
[1741254548264,101.20639921,149.42,149.33,3.37212421]
[1741254548464,80.8,149.41,149.35,15.10568688]
[1741254548667,82.55734417,149.4,149.36,0.14216157]
[1741254549045,80.8,149.4,149.38,0.14216157]
[1741254549246,80.8,149.39,149.38,0.14216157]
[1741254549563,80.8,149.39,149.38,15.10568688]
[1741254549768,80.8,149.39,149.38,15.24784845]
[1741254550155,45.0914,149.44,149.39,0.14216157]
[1741254550356,45.0914,149.43,149.39,7.77266157]
[1741254550768,45.0914,149.43,149.42,312.14216157]
[1741254552072,45.0914,149.43,149.42,312.0]
[1741254552468,45.1214,149.43,149.42,312.0]
[1741254552672,18.67964886,149.43,149.42,312.0]
[1741254552876,25.37164886,149.43,149.35,24.12239307]
[1741254553175,18.64964886,149.41,149.35,24.26455464]
[1741254553383,80.8,149.42,149.39,24.26455464]
[1741254553563,80.8,149.41,149.4,24.26455464]
[1741254553763,80.8,149.41,149.4,0.14216157]
[1741254554162,80.8,149.41,149.4,6.83556157]
[1741254554376,80.8,149.41,149.4,30.95795464]
[1741254555783,80.8,149.41,149.4,342.95795464]
[1741254556286,0.03,149.43,149.41,0.14216157]
[1741254556488,0.03,149.43,149.42,24.26455464]
[1741254558180,0.03,149.45,149.44,6.83376157]
[1741254558363,0.03,149.45,149.44,30.95615464]
[1741254558971,0.03,149.45,149.44,6.83376157]
[1741254559172,0.03,149.45,149.44,30.95615464]
[1741254559373,0.03,149.45,149.44,342.95615464]
[1741254559772,0.0001,149.45,149.44,342.95615464]
[1741254560177,0.0001,149.45,149.44,367.22070928]
[1741254560979,0.0001,149.45,149.44,343.09831621]
[1741254561672,0.0001,149.45,149.44,342.95615464]
[1741254562475,0.0001,149.45,149.44,318.6916]
[1741254562786,0.0001,149.45,149.44,312.0]
[1741254563163,0.0001,149.45,149.44,312.14216157]
[1741254563367,0.0001,149.45,149.44,312.0]
[1741254563765,0.0001,149.45,149.36,30.81719307]
[1741254564080,18.64964886,149.44,149.37,0.14216157]
[1741254564298,1.75711114,149.43,149.37,0.14216157]
[1741254564473,1.75711114,149.43,149.38,24.12239307]
[1741254564667,1.75711114,149.43,149.39,0.14216157]
[1741254564865,0.0001,149.45,149.39,24.26455464]
[1741254565063,18.64964886,149.44,149.39,0.14216157]
[1741254565270,20.40662629,149.44,149.39,0.14216157]
[1741254565465,20.40662629,149.44,149.4,0.14216157]
[1741254566187,18.64964886,149.44,149.4,0.14216157]
[1741254566774,1.75701416,149.45,149.44,0.14216157]
[1741254566981,0.0001,149.45,149.44,0.14216157]
[1741254567964,0.0001,149.45,149.41,0.14216157]
[1741254568561,0.0001,149.45,149.41,6.83496157]
[1741254568786,1.75681452,149.45,149.41,6.83496157]
[1741254569887,18.64974886,149.45,149.41,6.83496157]
[1741254570190,18.64974886,149.45,149.44,312.14216157]
[1741254571794,0.0001,149.45,149.44,312.14216157]
[1741254572384,0.0001,149.45,149.44,0.14216157]
[1741254575081,0.0001,149.45,149.44,6.83376157]
[1741254575590,0.0001,149.45,149.44,342.95615464]
[1741254575797,0.0001,149.45,149.44,318.83376157]
[1741254576874,0.0001,149.45,149.44,318.86676157]
[1741254577074,0.0001,149.45,149.44,312.17516157]
[1741254579699,0.0001,149.45,149.44,318.86676157]
[1741254580699,0.0001,149.45,149.44,333.94229092]
[1741254581599,0.0001,149.45,149.44,312.17516157]
[1741254582103,0.0001,149.45,149.44,312.033]
[1741254582702,0.0001,149.45,149.44,312.17516157]
[1741254583077,23.57086666,149.45,149.44,312.17516157]
[1741254583493,30.26206666,149.45,149.44,312.033]
[1741254583802,34.37916666,149.45,149.44,312.033]
[1741254583987,36.13592083,149.45,149.44,312.033]
[1741254585079,23.57086666,149.45,149.44,312.033]
[1741254585804,23.57086666,149.45,149.44,312.17516157]
[1741254586495,4.9212178,149.45,149.44,312.17516157]
[1741254589982,4.9212178,149.45,149.44,318.86676157]
[1741254590182,4.9212178,149.45,149.44,312.17516157]
[1741254593896,11.6124178,149.45,149.44,312.17516157]
[1741254594505,4.9212178,149.45,149.44,312.17516157]
[1741254595089,30.26206666,149.45,149.44,312.17516157]
[1741254596514,30.26206666,149.45,149.44,0.033]
[1741254596708,32.01914173,149.45,149.44,0.033]
[1741254597208,25.32794173,149.45,149.44,0.033]
[1741254597610,23.57086666,149.45,149.44,0.033]
[1741254599399,23.57086666,149.45,149.44,312.17516157]
[1741254600688,25.61179538,149.45,149.44,312.033]
[1741254600894,32.44515695,149.45,149.44,0.033]
[1741254601494,32.01867224,149.45,149.44,0.033]
[1741254602122,32.44515695,149.45,149.44,0.033]
[1741254602613,18.933972,149.44,149.34,14.9086]
[1741254602803,0.28432314,149.41,149.35,0.14216157]
[1741254602998,18.64964886,149.4,149.35,0.14216157]
[1741254603200,18.64964886,149.38,149.34,6.6961]
[1741254603595,18.64964886,149.4,149.34,30.83919415]
[1741254603807,1.75752422,149.41,149.39,312.0]
[1741254604008,1.75729297,149.44,149.4,0.14216157]
[1741254604297,80.8,149.43,149.4,0.14216157]
[1741254604508,0.28432314,149.41,149.33,15.09420316]
[1741254604693,18.64964886,149.39,149.34,0.14216157]
[1741254604897,1.75757068,149.38,149.34,0.14216157]
[1741254605119,80.8,149.37,149.34,0.14216157]
[1741254605317,80.8,149.37,149.33,15.23636473]
[1741254605516,4.94418101,149.36,149.33,15.23636473]
[1741254605719,4.94418101,149.36,149.33,21.93276473]
[1741254605902,80.8,149.35,149.33,21.93276473]
[1741254606098,80.8,149.34,149.33,21.93276473]
[1741254606835,85.74418101,149.34,149.33,21.93276473]
[1741254607318,85.74418101,149.34,149.33,333.93276473]
[1741254608015,85.74418101,149.34,149.33,318.83856157]
[1741254608719,85.74418101,149.34,149.33,333.93276473]
[1741254608899,80.8,149.34,149.33,333.93276473]
[1741254609099,80.8,149.34,149.33,345.68216473]
[1741254609353,80.8,149.4,149.33,362.42356473]
[1741254609533,80.8,149.4,149.39,6.83596157]
[1741254609826,80.8,149.4,149.39,21.93016473]
[1741254610016,85.73373633,149.4,149.39,21.93016473]
[1741254611131,80.8,149.44,149.41,0.14216157]
[1741254611316,80.8,149.43,149.41,0.14216157]
[1741254611503,80.8,149.43,149.42,21.92886473]
[1741254611703,0.0001,149.45,149.43,0.14216157]
[1741254611918,0.0001,149.45,149.44,15.23636473]
[1741254612319,4.93727682,149.45,149.44,15.23636473]
[1741254612519,4.93727682,149.45,149.44,327.23636473]
[1741254613838,0.0001,149.45,149.44,333.92796473]
[1741254620035,0.0001,149.45,149.44,349.4486526]
[1741254620239,80.83,149.5,149.49,0.14216157]
[1741254620424,0.03,149.5,149.49,15.23636473]
[1741254621435,0.03,149.5,149.48,0.14216157]
[1741254621635,0.03,149.5,149.48,6.83176157]
[1741254621853,0.03,149.5,149.49,15.23636473]
[1741254622335,80.8,149.57,149.5,0.14216157]
[1741254622515,80.8,149.56,149.51,15.09420316]
[1741254622712,80.8,149.56,149.52,0.14216157]
[1741254622917,82.55529076,149.55,149.52,0.14216157]
[1741254623333,82.55529076,149.55,149.54,312.0]
[1741254623531,23.58347246,149.56,149.55,0.14216157]
[1741254623752,25.33886752,149.56,149.55,0.14216157]
[1741254624055,32.02506752,149.56,149.55,0.14216157]
[1741254624372,25.33886752,149.56,149.55,0.14216157]
[1741254624518,23.58347246,149.56,149.55,0.14216157]
[1741254624941,4.9338236,149.56,149.55,0.14216157]
[1741254625523,13.37535715,149.56,149.55,0.14216157]
[1741254627454,99.44964886,149.55,149.43,28.5345]
[1741254627780,18.64964886,149.53,149.46,0.14216157]
[1741254628071,1.75591613,149.52,149.46,0.14216157]
[1741254628276,80.8,149.51,149.46,6.83246157]
[1741254629149,80.8,149.51,149.49,0.14216157]
[1741254629346,1.75584689,149.55,149.49,15.23636473]
[1741254629347,80.8,149.5,149.49,15.23636473]
[1741254629664,80.8,149.5,149.47,0.14216157]
[1741254630468,80.8,149.5,149.49,312.14216157]
[1741254631172,87.4889,149.5,149.49,312.14216157]
[1741254631358,25.33854886,149.5,149.49,312.0]
[1741254631670,18.64964886,149.49,149.44,0.033]
[1741254631868,82.55637033,149.48,149.44,0.033]
[1741254632665,80.8,149.48,149.44,0.033]
[1741254632846,80.8,149.48,149.45,15.23636473]
[1741254633047,80.8,149.48,149.47,0.14216157]
[1741254633970,80.8,149.48,149.46,0.14216157]
[1741254634453,80.8,149.48,149.47,318.83246157]
[1741254635465,80.8,149.48,149.47,312.14216157]
[1741254636566,80.8,149.48,149.47,318.83246157]
[1741254637547,80.8,149.48,149.47,333.92666473]
[1741254637750,80.8,149.53,149.48,0.14216157]
[1741254637973,80.8,149.52,149.5,0.14216157]
[1741254638472,80.8,149.52,149.48,21.92596473]
[1741254638675,80.8,149.52,149.5,0.14216157]
[1741254638847,80.8,149.52,149.5,15.23636473]
[1741254640257,80.8,149.52,149.49,0.14216157]
[1741254640564,80.8,149.52,149.51,0.14216157]
[1741254640874,80.8,149.52,149.51,312.14216157]
[1741254644090,6.6873,149.54,149.51,312.14216157]
[1741254644576,6.6862,149.56,149.5,0.14216157]
[1741254644756,80.8,149.55,149.5,6.83086157]
[1741254647585,80.8,149.55,149.54,312.14216157]
[1741254647784,6.6864,149.56,149.54,312.14216157]
[1741254648286,6.6864,149.56,149.54,0.14216157]
[1741254649589,20.40504806,149.55,149.47,18.44317754]
[1741254649767,80.8,149.54,149.48,0.14216157]
[1741254650170,80.8,149.54,149.5,0.033]
[1741254650375,80.8,149.53,149.5,0.033]
[1741254650772,80.8,149.53,149.51,0.14216157]
[1741254651171,80.8,149.53,149.52,312.14216157]
[1741254651373,18.64964886,149.55,149.52,312.14216157]
[1741254652088,6.6871,149.54,149.52,312.14216157]
[1741254652588,25.33644886,149.55,149.52,312.14216157]
[1741254652788,4.94138413,149.53,149.52,312.14216157]
[1741254653584,23.59103299,149.53,149.52,312.14216157]
[1741254653889,23.59103299,149.53,149.52,312.0]
[1741254654091,23.59103299,149.53,149.5,0.033]
[1741254654092,18.64964886,149.52,149.5,0.033]
[1741254654294,80.8,149.51,149.5,0.033]
[1741254654490,20.40554008,149.52,149.5,0.033]
[1741254654872,22.51534886,149.51,149.5,0.033]
[1741254655073,27.45673299,149.51,149.5,0.033]
[1741254656081,34.14523299,149.51,149.5,0.033]
[1741254656988,4.94138413,149.51,149.5,312.17516157]
[1741254657295,11.62988413,149.51,149.5,312.17516157]
[1741254658910,30.27953299,149.51,149.5,312.033]
[1741254659277,30.27953299,149.51,149.5,0.033]
[1741254660094,0.28432314,149.49,149.44,0.033]
[1741254660312,25.33994886,149.47,149.44,0.033]
[1741254660510,1.75664171,149.46,149.44,0.033]
[1741254661413,8.44744171,149.46,149.44,0.033]
[1741254661571,18.64964886,149.45,149.44,0.033]
[1741254661773,23.59103299,149.45,149.44,0.033]
[1741254662192,23.59103299,149.45,149.44,312.033]
[1741254662592,31.29583299,149.45,149.44,0.033]
[1741254662990,31.58015613,149.45,149.44,0.033]
[1741254663388,38.27135613,149.45,149.44,0.033]
[1741254665489,0.28432314,149.44,149.4,312.0]
[1741254665806,18.64964886,149.43,149.4,312.0]
[1741254665988,18.64964886,149.41,149.4,312.0]
[1741254666183,1.75709246,149.42,149.4,312.0]
[1741254666184,18.64964886,149.42,149.4,312.0]
[1741254666384,18.64964886,149.42,149.41,0.14216157]
[1741254666606,6.69852191,149.43,149.41,0.14216157]
[1741254666805,18.64964886,149.42,149.41,0.14216157]
[1741254667110,18.64964886,149.42,149.37,0.14216157]
[1741254667311,80.8,149.41,149.37,0.14216157]
[1741254667610,80.8,149.41,149.37,6.83666157]
[1741254667988,80.8,149.4,149.37,21.93086473]
[1741254668204,4.94138413,149.42,149.39,15.23636473]
[1741254668401,4.94138413,149.42,149.41,0.14216157]
[1741254668602,80.8,149.44,149.41,0.14216157]
[1741254668786,1.75667542,149.43,149.38,0.14216157]
[1741254668991,80.8,149.42,149.38,0.14216157]
[1741254669391,80.8,149.42,149.41,312.14216157]
[1741254670007,18.64964886,149.45,149.42,0.14216157]
[1741254670211,1.75695442,149.46,149.42,0.14216157]
[1741254670212,18.64964886,149.43,149.42,0.14216157]
[1741254670409,18.64964886,149.43,149.41,312.0]
[1741254670604,18.64964886,149.41,149.35,0.033]
[1741254670913,82.55728649,149.4,149.35,0.033]
[1741254671105,80.8,149.4,149.36,0.14216157]
[1741254672111,80.8,149.4,149.36,21.93146473]
[1741254673215,80.8,149.43,149.4,0.14216157]
[1741254673413,80.8,149.42,149.4,15.23636473]
[1741254673597,80.8,149.42,149.41,312.14216157]
[1741254673798,80.8,149.42,149.41,318.83506157]
[1741254674312,80.8,149.42,149.41,312.14216157]
[1741254675108,80.8,149.42,149.41,318.83506157]
[1741254675615,80.8,149.46,149.42,0.14216157]
[1741254675815,80.8,149.49,149.46,0.14216157]
[1741254676020,80.8,149.49,149.48,0.14216157]
[1741254676706,80.8,149.49,149.47,0.14216157]
[1741254677097,80.8,149.49,149.47,15.09420316]
[1741254677303,80.8,149.49,149.48,0.14216157]
[1741254677710,80.8,149.49,149.47,0.14216157]
[1741254678706,80.8,149.49,149.48,312.14216157]
[1741254679944,0.03,149.5,149.49,0.14216157]
[1741254680102,0.03,149.5,149.49,15.23636473]
[1741254681028,0.03,149.5,149.49,21.92576473]
[1741254681944,0.03,149.5,149.49,22.35224944]
[1741254682819,0.03,149.5,149.49,27.63199689]
[1741254683120,0.03,149.5,149.49,339.63199689]
[1741254684006,0.03,149.5,149.49,343.0216304]
[1741254684508,0.03,149.5,149.49,339.63199689]
[1741254688611,0.03,149.5,149.49,343.00777347]
[1741254693120,0.03,149.5,149.49,342.72345033]
[1741254693328,0.03,149.5,149.49,312.0]
[1741254693727,0.03,149.5,149.49,312.14216157]
[1741254694121,0.03,149.5,149.49,333.92576473]
[1741254694443,0.03,149.5,149.49,333.78360316]
[1741254694638,0.03,149.5,149.49,333.92576473]
[1741254695114,0.03,149.5,149.49,312.14216157]
[1741254696135,0.03,149.5,149.49,312.0]
[1741254697322,0.03,149.5,149.49,312.14216157]
[1741254698232,25.36854886,149.5,149.49,312.14216157]
[1741254699115,25.36854886,149.5,149.49,0.14216157]
[1741254700424,27.12474507,149.5,149.49,0.14216157]
[1741254700623,27.12474507,149.5,149.44,0.033]
[1741254700624,0.28432314,149.48,149.44,0.033]
[1741254700927,99.44964886,149.47,149.44,0.033]
[1741254701120,18.64964886,149.45,149.44,0.033]
[1741254702136,18.64964886,149.45,149.44,312.033]
[1741254702446,25.33994886,149.47,149.44,312.033]
[1741254702627,18.64964886,149.45,149.44,312.033]
[1741254702835,18.64964886,149.45,149.44,312.17516157]
[1741254703344,1.75656915,149.47,149.45,0.14216157]
[1741254703544,9.7118841,149.49,149.45,0.14216157]
[1741254703720,80.8,149.48,149.45,0.14216157]
[1741254703917,80.8,149.48,149.44,0.17516157]
[1741254704118,80.8,149.48,149.46,0.14216157]
[1741254704522,87.49,149.48,149.46,0.14216157]
[1741254704737,87.49,149.48,149.44,0.033]
[1741254706347,80.8,149.47,149.45,15.23636473]
[1741254708336,80.8,149.47,149.45,0.14216157]
[1741254708750,80.8,149.47,149.45,6.83326157]
[1741254709245,80.8,149.47,149.46,15.23636473]
[1741254709432,80.8,149.47,149.46,327.23636473]
[1741254710349,80.8,149.49,149.47,0.14216157]
[1741254710548,80.8,149.49,149.48,15.23636473]
[1741254710750,0.03,149.5,149.49,0.28432314]
[1741254710963,0.03,149.5,149.49,15.3785263]
[1741254711328,0.03,149.5,149.49,15.66284944]
[1741254712668,80.8,149.55,149.53,0.14216157]
[1741254712852,0.03,149.56,149.55,0.14216157]
[1741254713035,0.03,149.56,149.55,15.23636473]
[1741254713557,0.03,149.56,149.55,327.23636473]
[1741254715567,0.03,149.56,149.55,333.92306473]
[1741254715953,0.03,149.56,149.55,312.14216157]
[1741254716328,0.03,149.56,149.55,312.0]
[1741254716840,0.03,149.56,149.55,312.14216157]
[1741254717043,0.03,149.56,149.55,312.0]
[1741254717239,0.03,149.56,149.55,312.14216157]
[1741254717753,0.03,149.56,149.55,312.0]
[1741254717955,0.03,149.56,149.46,14.29064235]
[1741254717956,0.31432314,149.56,149.46,0.21324235]
[1741254718135,47.06024886,149.54,149.46,0.21324235]
[1741254718332,1.75594754,149.53,149.47,0.14216157]
[1741254718537,1.75594754,149.53,149.46,0.21324235]
[1741254718763,1.75594754,149.53,149.47,0.14216157]
[1741254719656,18.64964886,149.51,149.46,0.21324235]
[1741254719956,20.40565218,149.51,149.47,0.14216157]
[1741254720160,18.64964886,149.51,149.46,0.21324235]
[1741254720654,18.64964886,149.51,149.47,0.14216157]
[1741254720855,18.64964886,149.51,149.49,312.0]
[1741254721070,18.64964886,149.51,149.5,0.14216157]
[1741254721636,18.64964886,149.49,149.44,0.033]
[1741254721947,20.40564574,149.49,149.44,0.033]
[1741254722336,18.64964886,149.47,149.44,0.033]
[1741254722537,6.69349544,149.48,149.44,0.033]
[1741254722750,4.93698333,149.48,149.44,0.17516157]
[1741254722951,4.93698333,149.48,149.46,0.14216157]
[1741254723565,20.0,149.48,149.46,0.14216157]
[1741254723760,20.0,149.48,149.44,0.033]
[1741254723761,27.0963634,149.47,149.44,0.033]
[1741254723960,18.64964886,149.47,149.44,0.033]
[1741254724454,20.4060481,149.47,149.46,312.14216157]
[1741254724651,18.64964886,149.47,149.46,312.14216157]
[1741254724966,23.583948,149.47,149.46,312.14216157]
[1741254725869,30.274248,149.47,149.46,312.14216157]
[1741254727453,20.0,149.45,149.44,0.033]
[1741254727663,21.7568389,149.45,149.44,0.033]
[1741254728560,26.69113804,149.45,149.44,0.033]
[1741254728761,4.93429914,149.45,149.44,0.033]
[1741254730457,4.93429914,149.45,149.44,312.17516157]
[1741254730863,4.93429914,149.45,149.44,327.26936473]
[1741254731251,4.93429914,149.45,149.44,333.96096473]
[1741254731452,80.8,149.51,149.45,0.14216157]
[1741254731669,80.8,149.5,149.47,0.14216157]
[1741254732155,80.8,149.5,149.44,6.7246]
[1741254732156,80.8,149.5,149.45,0.14216157]
[1741254732984,82.55597364,149.5,149.44,0.17516157]
[1741254733161,4.93607349,149.49,149.44,0.17516157]
[1741254734071,11.62557349,149.49,149.44,0.17516157]
[1741254734277,4.93607349,149.49,149.44,21.96096473]
[1741254734575,4.93607349,149.49,149.48,312.14216157]
[1741254735077,4.93607349,149.49,149.48,327.23636473]
[1741254735287,80.8,149.51,149.49,0.14216157]
[1741254735577,80.8,149.51,149.49,6.83146157]
[1741254735776,80.8,149.51,149.49,21.92566473]
[1741254736277,80.8,149.51,149.49,6.83146157]